fUSD/lending_fUSD_20251024
["ID","MTS","AMOUNT","RATE_DAILY","PERIOD"]
[392275008,1761299450715,-151.0,0.0003671,30]
[392275009,1761299450725,-151.0,0.0003671,30]
[392275010,1761299450736,-151.0,0.0003673,30]
[392275011,1761299450746,-151.0,0.0003673,30]
[392275012,1761299450755,-151.0,0.0003673,30]
[392275013,1761299450765,-151.0,0.0003673,30]
[392275014,1761299450775,-151.0,0.0003679,30]
[392275015,1761299450785,-151.0,0.0003679,30]
[392275016,1761299450796,-151.0,0.0003679,30]
[392275017,1761299450806,-151.0,0.0003679,30]
[392275018,1761299450816,-151.0,0.00036925,30]
[392275019,1761299450826,-151.0,0.00036925,30]
[392275020,1761299450836,-15381.70546373,0.00037115,2]
[392275021,1761299450846,-151.0,0.00037133,30]
[392275022,1761299450857,-151.0,0.00037133,30]
[392275023,1761299450867,-151.0,0.00037133,30]
[392275024,1761299450879,-151.0,0.00037133,30]
[392275025,1761299450889,-151.0,0.00037133,30]
[392275026,1761299450900,-152.161737,0.00037133,30]
[392275027,1761299450911,-152.161737,0.00037133,30]
[392275028,1761299450921,-152.161737,0.00037133,30]
[392275029,1761299450931,-151.0,0.00037133,30]
[392275030,1761299450942,-152.161737,0.00037133,30]
[392275031,1761299450953,-151.0,0.00037133,30]
[392275032,1761299450963,-151.0,0.00037133,30]
[392275033,1761299450973,-208.752805,0.00037133,30]
[392275034,1761299450982,-151.0,0.00037133,30]
[392275035,1761299450993,-151.0,0.00037133,30]
[392275036,1761299451003,-151.0,0.00037133,30]
[392275037,1761299451013,-151.0,0.00037133,30]
[392275038,1761299451023,-151.0,0.00037133,30]
[392275039,1761299451034,-151.0,0.00037133,30]
[392275040,1761299451045,-151.0,0.00037133,15]
[392275041,1761299451055,-151.0,0.00037133,30]
[392275042,1761299451068,-151.0,0.00037133,30]
[392275043,1761299451078,-151.0,0.00037133,30]
[392275044,1761299451348,-151.0,0.00037133,30]
[392275045,1761299451358,-151.0,0.00037133,30]
[392275046,1761299451368,-151.0,0.00037133,30]
[392275047,1761299451377,-412.252024,0.00037133,30]
[392275048,1761299451387,-412.252024,0.00037133,30]
[392275049,1761299451397,-412.252024,0.00037133,30]
[392275050,1761299451406,-151.0,0.00037133,30]
[392275051,1761299451415,-412.252024,0.00037133,30]
[392275052,1761299451426,-154.210586,0.00037133,30]
[392275053,1761299451435,-154.210586,0.00037133,30]
[392275054,1761299451445,-154.210586,0.00037133,30]
[392275055,1761299451455,-156.210247,0.00037133,30]
[392275056,1761299451467,-257.957132,0.00037133,30]
[392275057,1761299451476,-154.210586,0.00037133,30]
[392275058,1761299451486,-257.957132,0.00037133,30]
[392275059,1761299451495,-257.957132,0.00037133,30]
[392275060,1761299451505,-257.957132,0.00037133,30]
[392275061,1761299451515,-178.641397,0.00037133,30]
[392275062,1761299451524,-151.0,0.00037133,30]
[392275063,1761299451534,-151.0,0.00037133,30]
[392275064,1761299451543,-151.0,0.00037133,30]
[392275065,1761299451553,-151.0,0.00037133,30]
[392275066,1761299451562,-151.0,0.00037133,30]
[392275067,1761299451571,-151.0,0.00037133,30]
[392275068,1761299451581,-253.868081,0.00037133,30]
[392275069,1761299451591,-151.0,0.00037133,30]
[392275070,1761299451600,-151.0,0.00037133,30]
[392275071,1761299451610,-213.636811,0.00037133,30]
[392275072,1761299451620,-151.0,0.00037133,30]
[392275073,1761299451630,-156.450772,0.00037133,30]
[392275074,1761299451639,-151.0,0.00037133,30]
[392275075,1761299451649,-151.0,0.00037133,30]
[392275076,1761299451659,-151.0,0.00037133,30]
[392275077,1761299451668,-151.0,0.00037133,30]
[392275078,1761299451678,-151.0,0.00037133,30]
[392275079,1761299451687,-154.006066,0.00037133,30]
[392275080,1761299451696,-168.523179,0.00037133,30]
[392275081,1761299451706,-168.523179,0.00037133,30]
[392275082,1761299451715,-168.523179,0.00037133,30]
[392275083,1761299451726,-168.523179,0.00037133,30]
[392275084,1761299451736,-151.0,0.00037133,30]
[392275085,1761299451745,-151.0,0.00037133,30]
[392275086,1761299451755,-151.0,0.00037133,30]
[392275087,1761299451765,-229.672384,0.00037133,30]
[392275088,1761299451774,-4118.411676,0.00037133,30]
[392275089,1761299451783,-151.0,0.00037133,30]
[392275090,1761299451793,-151.0,0.00037133,30]
[392275091,1761299451802,-151.0,0.00037133,30]
[392275092,1761299451811,-4118.411676,0.00037133,30]
[392275093,1761299451820,-185.451122,0.00037133,30]
[392275094,1761299451830,-4118.411676,0.00037133,30]
[392275095,1761299451840,-185.451122,0.00037133,30]
[392275096,1761299451849,-4118.411676,0.00037133,30]
[392275097,1761299451859,-185.451122,0.00037133,30]
[392275098,1761299451868,-286.358107,0.00037133,30]
[392275099,1761299451878,-185.451122,0.00037133,30]
[392275100,1761299451887,-286.358107,0.00037133,30]
[392275101,1761299451897,-286.358107,0.00037133,30]
[392275102,1761299451906,-286.358107,0.00037133,30]
[392275103,1761299451915,-151.0,0.00037133,30]
[392275104,1761299451924,-151.0,0.00037133,30]
[392275105,1761299451934,-151.0,0.00037133,30]
[392275106,1761299451943,-151.0,0.00037133,30]
[392275107,1761299451952,-151.0,0.00037133,30]
[392275108,1761299451961,-151.0,0.00037133,30]
[392275109,1761299451970,-151.0,0.00037133,30]
[392275110,1761299451980,-151.0,0.00037133,30]
[392275111,1761299451989,-243.493701,0.00037133,30]
[392275112,1761299451999,-151.0,0.00037133,30]
[392275113,1761299452008,-283.812716,0.00037133,30]
[392275114,1761299452017,-166.66,0.00037138,30]
[392275115,1761299452027,-1000.0,0.00037278,2]
[392275116,1761299452036,-501.64844161,0.00037321,5]
[392275117,1761299452046,-277.38371333,0.00037321,5]
[392275118,1761299452055,-800.0,0.00037327,5]
[392275119,1761299452065,-696.48,0.0003741,2]
[392275120,1761299452074,-475.59,0.0003741,2]
[392275121,1761299452083,-19753.30708042,0.00037417,2]
[392275122,1761299452093,-151.0,0.00037417,30]
[392275123,1761299452103,-151.0,0.00037417,30]
[392275124,1761299452113,-152.713264,0.00037417,30]
[392275125,1761299452124,-151.0,0.00037417,30]
[392275126,1761299452135,-151.0,0.00037417,30]
[392275127,1761299452145,-151.0,0.00037417,30]
[392275128,1761299452155,-151.0,0.00037417,30]
[392275129,1761299452166,-151.0,0.00037417,30]
[392275130,1761299452176,-498.579985,0.00037417,30]
[392275131,1761299452185,-498.579985,0.00037417,30]
[392275132,1761299452197,-181.488434,0.00037417,30]
[392275133,1761299452207,-151.0,0.00037417,30]
[392275134,1761299452218,-498.579985,0.00037417,30]
[392275135,1761299452228,-292.362334,0.00037417,30]
[392275136,1761299452238,-181.488434,0.00037417,30]
[392275137,1761299452248,-498.579985,0.00037417,30]
[392275138,1761299452258,-292.362334,0.00037417,30]
[392275139,1761299452268,-151.0,0.00037417,30]
[392275140,1761299452278,-181.488434,0.00037417,30]
[392275141,1761299452288,-292.362334,0.00037417,30]
[392275142,1761299452299,-151.0,0.00037417,30]
[392275143,1761299452313,-181.488434,0.00037417,30]
[392275144,1761299452322,-151.0,0.00037417,30]
[392275145,1761299452333,-502.28699612,0.00037464,5]
[392275146,1761299452343,-1532.23753929,0.00037464,5]
[392275147,1761299452354,-1000.0,0.000375,2]
[392275148,1761299452364,-509.0,0.00037507,2]
[392275149,1761299452375,-337.56,0.00037536,2]
[392275150,1761299452386,-151.0,0.00037552,30]
[392275151,1761299452396,-163.078475,0.00037552,30]
[392275152,1761299452406,-151.0,0.00037552,30]
[392275153,1761299452416,-151.0,0.00037552,30]
[392275154,1761299452426,-646.845684,0.00037552,30]
[392275155,1761299452436,-646.845684,0.00037552,30]
[392275156,1761299452445,-164.870138,0.00037552,30]
[392275157,1761299452455,-151.0,0.00037552,10]
[392275158,1761299452469,-646.845684,0.00037552,30]
[392275159,1761299452479,-164.870138,0.00037552,30]
[392275160,1761299452488,-646.845684,0.00037552,30]
[392275161,1761299452498,-151.0,0.00037552,30]
[392275162,1761299452508,-164.870138,0.00037552,30]
[392275163,1761299452517,-151.0,0.00037552,30]
[392275164,1761299452527,-151.0,0.00037552,30]
[392275165,1761299452538,-164.870138,0.00037552,30]
[392275166,1761299452548,-151.0,0.00037552,30]
[392275167,1761299452557,-151.0,0.00037552,30]
[392275168,1761299452567,-154.805842,0.00037552,30]
[392275169,1761299452576,-151.0,0.00037552,30]
[392275170,1761299452586,-151.0,0.00037552,30]
[392275171,1761299452595,-1000.0,0.00037552,2]
[392275172,1761299452604,-46933.65,0.000376,14]
[392275173,1761299452614,-6379.69,0.000376,2]
[392275174,1761299452623,-151.0,0.00037616,30]
[392275175,1761299452633,-151.0,0.00037616,30]
[392275176,1761299452642,-156.273034,0.00037616,30]
[392275177,1761299452651,-151.0,0.00037616,30]
[392275178,1761299452661,-151.0,0.00037616,30]
[392275179,1761299452670,-151.0,0.00037616,30]
[392275180,1761299452679,-151.0,0.00037616,30]
[392275181,1761299452689,-156.335908,0.00037616,30]
[392275182,1761299452699,-151.0,0.00037616,30]
[392275183,1761299452709,-509.0,0.00037622,120]
[392275184,1761299452718,-461.61384217,0.00037625,5]
[392275185,1761299452727,-1060.13521159,0.00037629,5]
[392275186,1761299452737,-151.0,0.00037632,30]
[392275187,1761299452747,-151.0,0.00037632,30]
[392275188,1761299452756,-1585.000793,0.00037632,30]
[392275189,1761299452765,-1585.000793,0.00037632,30]
[392275190,1761299452774,-1585.000793,0.00037632,30]
[392275191,1761299452783,-278.208894,0.00037632,30]
[392275192,1761299452793,-1585.000793,0.00037632,30]
[392275193,1761299452802,-278.208894,0.00037632,30]
[392275194,1761299452812,-278.208894,0.00037632,30]
[392275195,1761299452821,-278.208894,0.00037632,30]
[392275196,1761299452831,-151.0,0.00037632,30]
[392275197,1761299452840,-151.0,0.00037632,30]
[392275198,1761299452850,-151.0,0.00037632,30]
[392275199,1761299452861,-4118.411676,0.00037632,30]
[392275200,1761299452871,-151.0,0.00037632,30]
[392275201,1761299452880,-151.0,0.00037632,30]
[392275202,1761299452890,-4118.411676,0.00037632,30]
[392275203,1761299452900,-185.451122,0.00037632,30]
[392275204,1761299452909,-4118.411676,0.00037632,30]
[392275205,1761299452920,-185.451122,0.00037632,30]
[392275206,1761299452932,-4118.411686,0.00037632,30]
[392275207,1761299452944,-185.451122,0.00037632,30]
[392275208,1761299452954,-286.358107,0.00037632,30]
[392275209,1761299452963,-185.451122,0.00037632,30]
[392275210,1761299452975,-286.358107,0.00037632,30]
[392275211,1761299452984,-286.358107,0.00037632,30]
[392275212,1761299452994,-286.358099,0.00037632,30]
[392275213,1761299453005,-151.0,0.00037632,30]
[392275214,1761299453014,-151.0,0.00037632,30]
[392275215,1761299453023,-151.0,0.00037632,30]
[392275216,1761299453033,-151.0,0.00037632,30]
[392275217,1761299453043,-151.0,0.00037632,30]
[392275218,1761299453053,-151.0,0.00037632,30]
[392275219,1761299453062,-151.0,0.00037632,30]
[392275220,1761299453072,-25586.56683396,0.00037651,2]
[392275221,1761299453086,-294.977822,0.00037651,2]
[392275222,1761299453144,-27409.12534404,0.00037651,2]
[392275223,1761299453154,-151.0,0.00037652,30]
[392275224,1761299453163,-151.0,0.00037652,30]
[392275225,1761299453173,-151.0,0.00037652,30]
[392275226,1761299453183,-151.0,0.00037652,30]
[392275227,1761299453192,-151.0,0.00037652,30]
[392275228,1761299453203,-152.965417,0.00037652,30]
[392275229,1761299453213,-151.0,0.00037652,30]
[392275230,1761299453222,-151.0,0.00037652,30]
[392275231,1761299453232,-151.0,0.00037652,30]
[392275232,1761299453242,-151.0,0.00037652,30]
[392275233,1761299453251,-151.0,0.00037652,30]
[392275234,1761299453261,-151.0,0.00037652,30]
[392275235,1761299453273,-151.0,0.00037652,30]
[392275236,1761299453282,-155.251317,0.00037652,30]
[392275237,1761299453291,-195.503348,0.00037652,30]
[392275238,1761299453301,-151.0,0.00037652,30]
[392275239,1761299453310,-151.0,0.00037652,30]
[392275240,1761299453320,-151.0,0.00037652,30]
[392275241,1761299453329,-151.0,0.00037652,30]
[392275242,1761299453338,-151.0,0.00037652,30]
[392275243,1761299453347,-298.640691,0.00037652,30]
[392275244,1761299453357,-151.0,0.00037652,30]
[392275245,1761299453366,-152.161737,0.00037652,30]
[392275246,1761299453375,-152.161737,0.00037652,30]
[392275247,1761299453385,-152.161737,0.00037652,30]
[392275248,1761299453393,-151.0,0.00037652,30]
[392275249,1761299453403,-152.161737,0.00037652,30]
[392275250,1761299453412,-275.979849,0.00037652,30]
[392275251,1761299453422,-151.0,0.00037652,30]
[392275252,1761299453432,-151.0,0.00037652,30]
[392275253,1761299453441,-151.0,0.00037652,30]
[392275254,1761299453451,-151.0,0.00037652,30]
[392275255,1761299453462,-151.0,0.00037652,30]
[392275256,1761299453474,-151.0,0.00037652,15]
[392275257,1761299453484,-151.0,0.00037652,30]
[392275258,1761299453494,-151.0,0.00037652,30]
[392275259,1761299453503,-151.0,0.00037652,30]
[392275260,1761299453513,-208.390921,0.00037652,30]
[392275261,1761299453523,-151.0,0.00037652,30]
[392275262,1761299453532,-155.508179,0.00037652,30]
[392275263,1761299453542,-412.252024,0.00037652,30]
[392275264,1761299453551,-412.252024,0.00037652,30]
[392275265,1761299453561,-412.252024,0.00037652,30]
[392275266,1761299453570,-151.0,0.00037652,30]
[392275267,1761299453579,-412.252024,0.00037652,30]
[392275268,1761299453589,-154.210586,0.00037652,30]
[392275269,1761299453599,-154.210586,0.00037652,30]
[392275270,1761299453609,-154.210586,0.00037652,30]
[392275271,1761299453619,-257.957132,0.00037652,30]
[392275272,1761299453629,-154.210586,0.00037652,30]
[392275273,1761299453638,-257.957132,0.00037652,30]
[392275274,1761299453649,-257.957132,0.00037652,30]
[392275275,1761299453736,-257.957132,0.00037652,30]
[392275276,1761299453746,-151.0,0.00037652,30]
[392275277,1761299453755,-151.0,0.00037652,30]
[392275278,1761299453765,-151.0,0.00037652,30]
[392275279,1761299453774,-151.0,0.00037652,30]
[392275280,1761299453784,-151.0,0.00037652,30]
[392275281,1761299453793,-151.0,0.00037652,30]
[392275282,1761299453802,-151.0,0.00037652,30]
[392275283,1761299453811,-151.0,0.00037652,30]
[392275284,1761299453821,-151.0,0.00037652,30]
[392275285,1761299453830,-151.0,0.00037652,30]
[392275286,1761299453839,-151.0,0.00037652,30]
[392275287,1761299453849,-253.076872,0.00037652,30]
[392275288,1761299453859,-168.523179,0.00037652,30]
[392275289,1761299453868,-168.523179,0.00037652,30]
[392275290,1761299453877,-168.523179,0.00037652,30]
[392275291,1761299453887,-168.523179,0.00037652,30]
[392275292,1761299453896,-151.0,0.00037652,30]
[392275293,1761299453906,-159.700649,0.00037652,30]
[392275294,1761299453915,-151.0,0.00037652,30]
[392275295,1761299453924,-151.0,0.00037652,30]
[392275296,1761299453933,-151.0,0.00037652,30]
[392275297,1761299453942,-151.0,0.00037652,30]
[392275298,1761299453951,-151.0,0.00037652,30]
[392275299,1761299453960,-151.0,0.00037652,30]
[392275300,1761299453970,-211.198777,0.00037652,30]
[392275301,1761299453979,-1585.000793,0.00037652,30]
[392275302,1761299453988,-1585.000793,0.00037652,30]
[392275303,1761299453997,-1585.000793,0.00037652,30]
[392275304,1761299454007,-278.208894,0.00037652,30]
[392275305,1761299454017,-1585.000791,0.00037652,30]
[392275306,1761299454027,-278.208894,0.00037652,30]
[392275307,1761299454036,-278.208894,0.00037652,30]
[392275308,1761299454045,-278.208894,0.00037652,30]
[392275309,1761299454055,-151.0,0.00037652,30]
[392275310,1761299454064,-151.0,0.00037652,30]
[392275311,1761299454073,-151.0,0.00037652,30]
[392275312,1761299454083,-151.0,0.00037652,30]
[392275313,1761299454092,-646.845684,0.00037652,30]
[392275314,1761299454101,-646.845684,0.00037652,30]
[392275315,1761299454110,-164.870138,0.00037652,30]
[392275316,1761299454119,-155.387114,0.00037652,10]
[392275317,1761299454129,-646.845684,0.00037652,30]
[392275318,1761299454139,-164.870138,0.00037652,30]
[392275319,1761299454149,-646.845692,0.00037652,30]
[392275320,1761299454158,-151.0,0.00037652,30]
[392275321,1761299454168,-164.870138,0.00037652,30]
[392275322,1761299454177,-151.0,0.00037652,30]
[392275323,1761299454187,-164.870146,0.00037652,30]
[392275324,1761299454196,-151.0,0.00037652,30]
[392275325,1761299454206,-151.0,0.00037652,30]
[392275326,1761299454215,-160.08563,0.00037652,30]
[392275327,1761299454225,-151.0,0.00037652,30]
[392275328,1761299454235,-151.0,0.00037652,30]
[392275329,1761299454244,-151.0,0.00037652,30]
[392275330,1761299454254,-151.0,0.00037652,30]
[392275331,1761299454264,-151.0,0.00037652,30]
[392275332,1761299454273,-151.0,0.00037652,30]
[392275333,1761299454284,-156.117335,0.00037652,30]
[392275334,1761299454293,-151.0,0.00037652,30]
[392275335,1761299454303,-498.579985,0.00037652,30]
[392275336,1761299454312,-151.0,0.00037652,30]
[392275337,1761299454322,-498.579985,0.00037652,30]
[392275338,1761299454331,-292.362334,0.00037652,30]
[392275339,1761299454340,-181.488434,0.00037652,30]
[392275340,1761299454350,-498.579985,0.00037652,30]
[392275341,1761299454359,-292.362334,0.00037652,30]
[392275342,1761299454368,-181.488434,0.00037652,30]
[392275343,1761299454377,-151.0,0.00037652,30]
[392275344,1761299454387,-292.362334,0.00037652,30]
[392275345,1761299454398,-498.579979,0.00037652,30]
[392275346,1761299454407,-181.488434,0.00037652,30]
[392275347,1761299454416,-292.362324,0.00037652,30]
[392275348,1761299454426,-151.0,0.00037652,30]
[392275349,1761299454435,-181.488438,0.00037652,30]
[392275350,1761299454444,-151.0,0.00037652,30]
[392275351,1761299454453,-201.24,0.00037664,120]
[392275352,1761299454464,-150.0,0.00037673,5]
[392275353,1761299454476,-168.0,0.00037716,2]
[392275354,1761299454486,-630.79,0.00037718,2]
[392275355,1761299454495,-20770.82874464,0.00037763,2]
[392275356,1761299454505,-161.01244,0.00037767,30]
[392275357,1761299454516,-168.0,0.00037795,2]
[392275358,1761299454525,-1086.17,0.000378,14]
[392275359,1761299454535,-661.07975231,0.00037808,2]
[392275360,1761299454545,-1000.0,0.00037826,2]
[392275361,1761299454555,-508.0,0.00037844,120]
[392275362,1761299454564,-166.66,0.0003792,30]
[392275363,1761299454574,-172.72,0.0003796,2]
[392275364,1761299454583,-150.0,0.00037995,2]
[392275365,1761299454593,-150.0,0.00037995,120]
[392275366,1761299454602,-11456.92893432,0.00037999,120]
[392275367,1761299454611,-797.29,0.00038,30]
[392275368,1761299454621,-173.0,0.00038,30]
[392275369,1761299454630,-1000.0,0.00038012,5]
[392275370,1761299454640,-508.0,0.00038037,7]
[392275371,1761299454649,-1000.0,0.000381,2]
[392275372,1761299454658,-726.67837332,0.000381,33]
[392275373,1761299454668,-172.72,0.00038121,2]
[392275374,1761299454678,-168.0,0.0003815,2]
[392275375,1761299454687,-160.65,0.00038215,2]
[392275376,1761299454702,-303.23790715,0.00038221,5]
[392275377,1761299454711,-8116.19339969,0.00038313,2]
[392275378,1761299454726,-11637.11368073,0.00038313,2]
[392275379,1761299454735,-7328.99665172,0.00038318,30]
[392275380,1761299454745,-1000.0,0.00038356,120]
[392275381,1761299454756,-1000.0,0.00038356,120]
[392275382,1761299454765,-180.06219327,0.00038356,120]
[392275383,1761299454775,-1000.0,0.00038373,5]
[392275384,1761299454784,-1000.0,0.00038374,2]
[392275385,1761299454793,-475.59,0.00038377,2]
[392275386,1761299454805,-475.59,0.00038377,2]
[392275387,1761299454814,-475.59,0.00038377,2]
[392275388,1761299454826,-475.59,0.00038377,2]
[392275389,1761299454835,-46933.65,0.000384,14]
[392275390,1761299454844,-6379.69,0.000384,30]
[392275391,1761299454854,-20770.82874464,0.0003841,2]
[392275392,1761299454863,-1425.0,0.00038441,2]
[392275393,1761299454872,-151.0,0.00038447,120]
[392275394,1761299454881,-151.0,0.00038447,120]
[392275395,1761299454890,-152.161737,0.00038447,120]
[392275396,1761299454900,-152.161737,0.00038447,120]
[392275397,1761299454909,-152.161737,0.00038447,120]
[392275398,1761299454920,-151.0,0.00038447,120]
[392275399,1761299454930,-152.161737,0.00038447,120]
[392275400,1761299454941,-151.0,0.00038447,120]
[392275401,1761299454950,-151.0,0.00038447,120]
[392275402,1761299454960,-151.0,0.00038447,120]
[392275403,1761299454969,-151.0,0.00038447,120]
[392275404,1761299454978,-162.582534,0.00038447,120]
[392275405,1761299454987,-151.0,0.00038447,15]
[392275406,1761299454999,-157.411087,0.00038447,120]
[392275407,1761299455010,-151.0,0.00038447,120]
[392275408,1761299455020,-157.818787,0.00038447,120]
[392275409,1761299455029,-412.252024,0.00038447,120]
[392275410,1761299455039,-412.252024,0.00038447,120]
[392275411,1761299455050,-412.252024,0.00038447,120]
[392275412,1761299455063,-164.792645,0.00038447,120]
[392275413,1761299455073,-412.252024,0.00038447,120]
[392275414,1761299455083,-154.210586,0.00038447,120]
[392275415,1761299455092,-154.210586,0.00038447,120]
[392275416,1761299455102,-154.210586,0.00038447,120]
[392275417,1761299455111,-257.957132,0.00038447,120]
[392275418,1761299455120,-154.210586,0.00038447,120]
[392275419,1761299455130,-257.957132,0.00038447,120]
[392275420,1761299455140,-257.957132,0.00038447,120]
[392275421,1761299455150,-257.957132,0.00038447,120]
[392275422,1761299455159,-151.0,0.00038447,120]
[392275423,1761299455168,-151.0,0.00038447,120]
[392275424,1761299455178,-151.0,0.00038447,120]
[392275425,1761299455187,-151.0,0.00038447,120]
[392275426,1761299455197,-151.0,0.00038447,120]
[392275427,1761299455208,-162.060662,0.00038447,120]
[392275428,1761299455217,-155.845477,0.00038447,120]
[392275429,1761299455226,-151.0,0.00038447,120]
[392275430,1761299455236,-151.0,0.00038447,120]
[392275431,1761299455245,-168.523179,0.00038447,120]
[392275432,1761299455255,-168.523179,0.00038447,120]
[392275433,1761299455264,-168.523179,0.00038447,120]
[392275434,1761299455273,-168.523179,0.00038447,120]
[392275435,1761299455282,-508.0,0.00038575,2]
[392275436,1761299455292,-152.0,0.0003863,4]
[392275437,1761299455302,-1000.0,0.00038648,2]
[392275438,1761299455311,-1425.0,0.00038678,2]
[392275439,1761299455321,-1200.0,0.00038697,5]
[392275440,1761299455331,-166.66,0.00038702,30]
[392275441,1761299455341,-168.0,0.00038796,2]
[392275442,1761299455350,-1086.17,0.000388,14]
[392275443,1761299455360,-181.0,0.00038812,2]
[392275444,1761299455370,-150.0,0.00038827,30]
[392275445,1761299455380,-445.68982148,0.00038827,30]
[392275446,1761299455389,-901.07189194,0.00038844,30]
[392275447,1761299455399,-500.0,0.00038848,30]
[392275448,1761299455408,-495.92,0.00038853,120]
[392275449,1761299455417,-337.56,0.00038892,2]
[392275450,1761299455430,-1000.0,0.00038922,2]
[392275451,1761299455440,-1425.0,0.00038935,2]
[392275452,1761299455450,-150.0,0.00038964,7]
[392275453,1761299455460,-500.0,0.00038967,30]
[392275454,1761299455474,-151.0,0.0003899,120]
[392275455,1761299455483,-151.0,0.0003899,120]
[392275456,1761299455493,-152.161737,0.0003899,120]
[392275457,1761299455502,-152.161737,0.0003899,120]
[392275458,1761299455512,-152.161737,0.0003899,120]
[392275459,1761299455522,-151.0,0.0003899,120]
[392275460,1761299455532,-152.161729,0.0003899,120]
[392275461,1761299455541,-151.0,0.0003899,120]
[392275462,1761299455551,-151.0,0.0003899,120]
[392275463,1761299455560,-151.0,0.0003899,120]
[392275464,1761299455570,-283.435513,0.0003899,15]
[392275465,1761299455580,-151.0,0.0003899,120]
[392275466,1761299455589,-412.252024,0.0003899,120]
[392275467,1761299455599,-412.252024,0.0003899,120]
[392275468,1761299455609,-412.252024,0.0003899,120]
[392275469,1761299455618,-412.252031,0.0003899,120]
[392275470,1761299455631,-154.210586,0.0003899,120]
[392275471,1761299455641,-154.210586,0.0003899,120]
[392275472,1761299455650,-154.210586,0.0003899,120]
[392275473,1761299455660,-257.957132,0.0003899,120]
[392275474,1761299455670,-154.210586,0.0003899,120]
[392275475,1761299455679,-257.957132,0.0003899,120]
[392275476,1761299455688,-257.957132,0.0003899,120]
[392275477,1761299455698,-257.957136,0.0003899,120]
[392275478,1761299455708,-151.0,0.0003899,120]
[392275479,1761299455718,-151.0,0.0003899,120]
[392275480,1761299455728,-151.0,0.0003899,120]
[392275481,1761299455738,-181.778693,0.0003899,120]
[392275482,1761299455747,-151.0,0.0003899,120]
[392275483,1761299455757,-151.0,0.0003899,120]
[392275484,1761299455767,-168.523179,0.0003899,120]
[392275485,1761299455777,-168.523179,0.0003899,120]
[392275486,1761299455787,-168.523179,0.0003899,120]
[392275487,1761299455796,-168.523177,0.0003899,120]
[392275488,1761299455806,-3000.0,0.00039,5]
[392275489,1761299455821,-100142.00564877,0.00039,2]
[392275490,1761299455830,-1000.09171088,0.00039,5]
[392275491,1761299455839,-151.0,0.00039,120]
[392275492,1761299455849,-151.0,0.00039,120]
[392275493,1761299455860,-151.0,0.00039,90]
[392275494,1761299455869,-153.74947,0.00039,120]
[392275495,1761299455878,-151.0,0.00039,120]
[392275496,1761299455888,-151.0,0.00039,120]
[392275497,1761299455898,-151.0,0.00039,120]
[392275498,1761299455907,-151.0,0.00039,120]
[392275499,1761299455917,-151.0,0.00039,120]
[392275500,1761299455927,-151.0,0.00039,120]
[392275501,1761299455936,-151.0,0.00039,120]
[392275502,1761299455945,-202.915397,0.00039,120]
[392275503,1761299455955,-299.61378136,0.00039,120]
[392275504,1761299455965,-500.0,0.00039014,30]
[392275505,1761299455975,-1229.54,0.00039041,2]
[392275506,1761299455984,-1201.16,0.00039041,2]
[392275507,1761299455995,-1201.16,0.00039041,2]